[Event "POL-chT 1 Liga 2019"]
[Site "Dzwirzyno"]
[Date "2019.09.08"]
[Round "2.26"]
[White "Kowalski, Igor"]
[Black "Kislinsky, Alexey"]
[Result "0-1"]
[ECO "A59"]
[WhiteElo "2364"]
[BlackElo "2436"]
[Annotator "RC"]
[PlyCount "94"]
[EventDate "2019.09.07"]
[EventType "team-tourn"]
[EventCountry "POL"]
[SourceTitle "playchess.com"]
[Source "ChessBase"]
[SourceQuality "1"]
[TimeControl "40/5400+30:1800+30"]

1. d4 {[%emt 0:00:00]} Nf6 {[%emt 0:00:00]} 2. c4 {[%emt 0:00:00]} c5 {[%emt 0:00:01]} 3. d5 {[%emt 0:00:00]} b5 {[%emt 0:00:07]} 4. cxb5 {[%emt 0:00:00]} a6 {[%emt 0:00:06]} 5. bxa6 {[%emt 0:00:00]} g6 {[%emt 0:00:07]} 6. Nc3 {[%emt 0:00:00]} Bxa6 {[%emt 0:00:07]} 7. e4 {[%emt 0:00:00]} Bxf1 {[%emt 0:00:05]} 8. Kxf1 {[%emt 0:00:00]} d6 {[%emt 0:00:08]} 9. g3 {[%emt 0:00:06]} Bg7 {[%emt 0:00:07]} 10. Kg2 {[%emt 0:00:05]} O-O {[%emt 0:00:10]} 11. Nf3 {[%emt 0:00:05]} Qb6 {[%emt 0:00:08]} 12. a4 {[%emt 0:00:55]} Na6 {[%emt 0:00:23]} 13. Nd2 {[%emt 0:01:44]} Nc7 {[%emt 0:01:02]} 14. Re1 {[%emt 0:22:30]} Rfb8 {[%emt 0:02:35]} 15. f4 {[%emt 0:09:40]} Qa6 {[%emt 0:04:59]} 16. Nf3 {[%emt 0:02:09]} Nd7 {[%emt 0:05:19]} 17. Qc2 {[%emt 0:14:11]} Rb4 {[%emt 0:03:36]} 18. h4 {[%emt 0:13:35]} Nf6 {[%emt 0:04:28]} 19. Rb1 {[%emt 0:09:37]} e6 {[%emt 0:04:41]} 20. dxe6 {[%emt 0:02:31]} Nxe6 {[%emt 0:00:09]} 21. b3 {[%emt 0:00:26]} c4 {[%emt 0:08:11]} 22. Ba3 {[%emt 0:01:58]} cxb3 {[%emt 0:01:51]} 23. Rxb3 {[%emt 0:00:56]} Rc4 {[%emt 0:00:27]} 24. Qd3 {[%emt 0:01:42]} Nh5 {[%emt 0:04:18]} 25. Nd5 {[%emt 0:10:01]} Rxa4 {[%emt 0:01:37]} 26. Qxa6 {[%emt 0:00:06]} R4xa6 {[%emt 0:00:05]} 27. Ree3 {[%emt 0:00:30]} Bd4 {[%emt 0:06:06]} 28. Nxd4 {[%emt 0:07:22]} Nxd4 {[%emt 0:00:05]} 29. Nc7 {[%emt 0:00:02]} Nxb3 {[%emt 0:00:54]} 30. Nxa6 {[%emt 0:00:04]} Nd2 {[%emt 0:01:06]} 31. Nc7 {[%emt 0:00:38]} Ra4 {[%emt 0:01:06]} 32. Nb5 {[%emt 0:04:16]} Nxe4 {[%emt 0:01:33]} 33. Nxd6 {[%emt 0:00:26]} Nhxg3 {[%emt 0:02:46]} 34. Rb3 {[%emt 0:00:49]} Nxd6 {[%emt 0:03:03]} 35. Bxd6 {[%emt 0:00:07]} Ne4 {[%emt 0:00:03]} 36. Rb8+ {[%emt 0:00:13]} Kg7 {[%emt 0:00:06]} 37. Bf8+ {[%emt 0:00:12]} Kf6 {[%emt 0:00:08]} 38. Kf3 {[%emt 0:00:19]} Nd2+ {[%emt 0:00:42]} 39. Ke2 {[%emt 0:00:22]} Nc4 {[%emt 0:01:34]} 40. Kd3 {[%emt 0:00:00]} h5 {[%emt 0:00:00]} 41. Rb5 {[%emt 0:02:23]} Na5 {[%emt 0:09:03]} 42. Bh6 {[%emt 0:03:33]} Nc6 {[%emt 0:01:32]} 43. Rb6 {[%emt 0:05:54]} Rd4+ {[%emt 0:02:30]} 44. Ke3 {[%emt 0:00:06]} Rd6 {[%emt 0:00:07]} 45. Rb7 {[%emt 0:00:57]} Nd4 {[%emt 0:01:19]} 46. Ke4 {[%emt 0:00:34]} Nf5 {[%emt 0:00:13]} 47. Bg5+ {[%emt 0:00:22]} Ke6 {[%emt 0:00:13]} 0-1

[Event "POL-chT 1 Liga 2019"]
[Site "Dzwirzyno"]
[Date "2019.09.08"]
[Round "2.28"]
[White "Bartel, Michal"]
[Black "Jaroch, Karol"]
[Result "*"]
[WhiteElo "2291"]
[BlackElo "2236"]
[Annotator "NA"]
[PlyCount "22"]
[EventDate "2019.09.07"]
[EventType "team-tourn"]
[EventCountry "POL"]
[SourceTitle "playchess.com"]
[Source "ChessBase"]
[SourceQuality "1"]
[TimeControl "40/5400+30:1800+30"]

1. e4 {[%emt 0:00:00]} e5 {[%emt 0:00:07]} 2. Nf3 {[%emt 0:00:00]} Nc6 {[%emt 0:00:15]} 3. Bb5 {[%emt 0:00:00]} a6 {[%emt 0:00:26]} 4. Ba4 {[%emt 0:00:00]} Nf6 {[%emt 0:00:34]} 5. O-O {[%emt 0:00:03]} Be7 {[%emt 0:00:30]} 6. Re1 {[%emt 0:00:22]} b5 {[%emt 0:00:20]} 7. Bb3 {[%emt 0:00:05]} d6 {[%emt 0:00:18]} 8. c3 {[%emt 0:04:45]} O-O {[%emt 0:00:12]} 9. h3 {[%emt 0:01:04]} Re8 {[%emt 0:01:13]} 10. d3 {[%emt 0:04:05]} Na5 {[%emt 0:01:16]} 11. Bc2 {[%emt 0:00:17]} c5 {[%emt 0:00:19]} *

[Event "POL-chT 1 Liga 2019"]
[Site "Dzwirzyno"]
[Date "2019.09.08"]
[Round "2.29"]
[White "Kucza, Karol"]
[Black "Rozycki, Bartlomiej"]
[Result "1/2-1/2"]
[ECO "B18"]
[WhiteElo "2280"]
[BlackElo "2200"]
[Annotator "NA"]
[PlyCount "49"]
[EventDate "2019.09.07"]
[EventType "team-tourn"]
[EventCountry "POL"]
[SourceTitle "playchess.com"]
[Source "ChessBase"]
[SourceQuality "1"]
[TimeControl "40/5400+30:1800+30"]

1. e4 {[%emt 0:00:00]} c6 {[%emt 0:00:00]} 2. d4 {[%emt 0:00:00]} d5 {[%emt 0:00:00]} 3. Nc3 {[%emt 0:01:19]} dxe4 {[%emt 0:00:00]} 4. Nxe4 {[%emt 0:00:05]} Bf5 {[%emt 0:00:00]} 5. Qf3 {[%emt 0:00:07]} e6 {[%emt 0:01:53]} 6. c3 {[%emt 0:02:42]} Nf6 {[%emt 0:01:48]} 7. Nxf6+ {[%emt 0:00:12]} Qxf6 {[%emt 0:00:05]} 8. Ne2 {[%emt 0:00:15]} Bd6 {[%emt 0:04:01]} 9. Ng3 {[%emt 0:01:56]} Bg6 {[%emt 0:00:33]} 10. Qxf6 {[%emt 0:00:08]} gxf6 {[%emt 0:00:04]} 11. Bh6 {[%emt 0:04:35]} Nd7 {[%emt 0:02:12]} 12. Be2 {[%emt 0:04:58]} O-O-O {[%emt 0:08:42]} 13. O-O {[%emt 0:06:51]} Bf8 {[%emt 0:07:01]} 14. Bxf8 {[%emt 0:00:42]} Rhxf8 {[%emt 0:00:51]} 15. f4 {[%emt 0:03:11]} f5 {[%emt 0:08:50]} 16. Rad1 {[%emt 0:07:33]} Nf6 {[%emt 0:01:34]} 17. Bf3 {[%emt 0:01:07]} Nd5 {[%emt 0:02:28]} 18. Bxd5 {[%emt 0:00:11]} Rxd5 {[%emt 0:01:21]} 19. Kf2 {[%emt 0:00:19]} Rfd8 {[%emt 0:01:35]} 20. Ke3 {[%emt 0:04:44]} c5 {[%emt 0:01:31]} 21. Rf2 {[%emt 0:02:31]} cxd4+ {[%emt 0:03:46]} 22. Rxd4 {[%emt 0:00:07]} Rxd4 {[%emt 0:05:21]} 23. cxd4 {[%emt 0:00:07]} Kd7 {[%emt 0:01:42]} 24. Rc2 {[%emt 0:01:35]} f6 {[%emt 0:02:38]} 25. Ne2 {[%emt 0:05:49]} 1/2-1/2

[Event "POL-chT 1 Liga 2019"]
[Site "Dzwirzyno"]
[Date "2019.09.08"]
[Round "2.29"]
[White "Samborski, Henryk"]
[Black "Sliwerski, Radoslaw"]
[Result "*"]
[WhiteElo "2098"]
[BlackElo "2078"]
[Annotator "NA"]
[PlyCount "20"]
[EventDate "2019.09.07"]
[EventType "team-tourn"]
[EventCountry "POL"]
[SourceTitle "playchess.com"]
[Source "ChessBase"]
[SourceQuality "1"]
[TimeControl "40/5400+30:1800+30"]

1. e4 {[%emt 0:00:00]} c6 {[%emt 0:00:00]} 2. d4 {[%emt 0:00:00]} d5 {[%emt 0:00:00]} 3. Nc3 {[%emt 0:01:19]} dxe4 {[%emt 0:00:00]} 4. Nxe4 {[%emt 0:00:05]} Bf5 {[%emt 0:00:00]} 5. Qf3 {[%emt 0:00:07]} e6 {[%emt 0:01:53]} 6. c3 {[%emt 0:02:42]} Nf6 {[%emt 0:01:48]} 7. Nxf6+ {[%emt 0:00:12]} Qxf6 {[%emt 0:00:05]} 8. Ne2 {[%emt 0:00:15]} Bd6 {[%emt 0:04:01]} 9. Ng3 {[%emt 0:01:56]} Bg6 {[%emt 0:00:33]} 10. Qxf6 {[%emt 0:00:08]} gxf6 {[%emt 0:00:04]} *

[Event "POL-chT 1 Liga 2019"]
[Site "Dzwirzyno"]
[Date "2019.09.08"]
[Round "2.30"]
[White "Kulon, Klaudia"]
[Black "Worek, Joanna"]
[Result "*"]
[ECO "A62"]
[WhiteElo "2339"]
[BlackElo "2308"]
[Annotator "NA"]
[PlyCount "20"]
[EventDate "2019.09.07"]
[EventType "team-tourn"]
[EventCountry "POL"]
[SourceTitle "playchess.com"]
[Source "ChessBase"]
[SourceQuality "1"]
[TimeControl "40/5400+30:1800+30"]

1. d4 {[%emt 0:00:00]} Nf6 {[%emt 0:00:00]} 2. c4 {[%emt 0:00:00]} c5 {[%emt 0:00:00]} 3. d5 {[%emt 0:00:00]} e6 {[%emt 0:00:00]} 4. Nc3 {[%emt 0:00:01]} exd5 {[%emt 0:00:03]} 5. cxd5 {[%emt 0:00:05]} d6 {[%emt 0:00:07]} 6. g3 {[%emt 0:00:21]} g6 {[%emt 0:00:36]} 7. Bg2 {[%emt 0:00:16]} Bg7 {[%emt 0:00:54]} 8. Nf3 {[%emt 0:00:16]} O-O {[%emt 0:00:08]} 9. O-O {[%emt 0:00:22]} Re8 {[%emt 0:01:20]} 10. Re1 {[%emt 0:00:54]} Ne4 {[%emt 0:10:32]} *

[Event "POL-chT 1 Liga 2019"]
[Site "Dzwirzyno"]
[Date "2019.09.08"]
[Round "2.30"]
[White "Moscicka, Pola"]
[Black "Kantane, Anna"]
[Result "0-1"]
[ECO "A62"]
[WhiteElo "1994"]
[BlackElo "2273"]
[Annotator "NA"]
[PlyCount "92"]
[EventDate "2019.09.07"]
[EventType "team-tourn"]
[EventCountry "POL"]
[SourceTitle "playchess.com"]
[Source "ChessBase"]
[SourceQuality "1"]
[TimeControl "40/5400+30:1800+30"]

1. d4 {[%emt 0:00:00]} Nf6 {[%emt 0:00:00]} 2. c4 {[%emt 0:00:00]} c5 {[%emt 0:00:00]} 3. d5 {[%emt 0:00:00]} e6 {[%emt 0:00:00]} 4. Nc3 {[%emt 0:00:01]} exd5 {[%emt 0:00:03]} 5. cxd5 {[%emt 0:00:05]} d6 {[%emt 0:00:07]} 6. g3 {[%emt 0:00:21]} g6 {[%emt 0:00:36]} 7. Bg2 {[%emt 0:00:16]} Bg7 {[%emt 0:00:54]} 8. Nf3 {[%emt 0:00:16]} O-O {[%emt 0:00:08]} 9. O-O {[%emt 0:00:22]} Re8 {[%emt 0:01:20]} 10. Re1 {[%emt 0:00:54]} Ne4 {[%emt 0:10:32]} 11. Nxe4 {[%emt 0:01:52]} Rxe4 {[%emt 0:01:49]} 12. Qc2 {[%emt 0:00:25]} Re8 {[%emt 0:00:45]} 13. e4 {[%emt 0:10:14]} Na6 {[%emt 0:09:08]} 14. Bg5 {[%emt 0:06:34]} Qb6 {[%emt 0:04:40]} 15. Qa4 {[%emt 0:14:52]} Bg4 {[%emt 0:04:48]} 16. Rab1 {[%emt 0:01:10]} Nb4 {[%emt 0:07:55]} 17. Nd2 {[%emt 0:06:40]} Qc7 {[%emt 0:07:04]} 18. Qb3 {[%emt 0:04:03]} a5 {[%emt 0:05:47]} 19. a4 {[%emt 0:08:18]} b5 {[%emt 0:03:13]} 20. axb5 {[%emt 0:06:39]} a4 {[%emt 0:00:27]} 21. Qc4 {[%emt 0:00:12]} Bd7 {[%emt 0:01:20]} 22. Bf1 {[%emt 0:07:01]} Reb8 {[%emt 0:08:22]} 23. Qc1 {[%emt 0:01:23]} Bxb5 {[%emt 0:00:32]} 24. Bxb5 {[%emt 0:01:14]} Rxb5 {[%emt 0:00:03]} 25. Qc4 {[%emt 0:00:41]} Rb7 {[%emt 0:10:29]} 26. Nf3 {[%emt 0:02:40]} Qd7 {[%emt 0:05:59]} 27. Bd2 {[%emt 0:01:35]} Qb5 {[%emt 0:04:18]} 28. Qxb5 {[%emt 0:14:18]} Rxb5 {[%emt 0:00:02]} 29. Bxb4 {[%emt 0:03:24]} Rxb4 {[%emt 0:00:35]} 30. e5 {[%emt 0:00:51]} dxe5 {[%emt 0:00:32]} 31. Nxe5 {[%emt 0:00:09]} Bxe5 {[%emt 0:09:13]} 32. Rxe5 {[%emt 0:00:11]} a3 {[%emt 0:00:05]} 33. Re2 {[%emt 0:00:15]} c4 {[%emt 0:02:52]} 34. Ra1 {[%emt 0:03:12]} a2 {[%emt 0:00:34]} 35. d6 {[%emt 0:00:52]} Kf8 {[%emt 0:01:50]} 36. Kg2 {[%emt 0:01:10]} Rb7 {[%emt 0:01:22]} 37. Kf3 {[%emt 0:01:46]} Rd7 {[%emt 0:00:28]} 38. Rd2 {[%emt 0:00:15]} Ke8 {[%emt 0:00:24]} 39. Ke4 {[%emt 0:00:38]} Ra6 {[%emt 0:00:34]} 40. Ke5 {[%emt 0:00:00]} Ra5+ {[%emt 0:00:00]} 41. Rd5 {[%emt 0:02:06]} Ra4 {[%emt 0:09:45]} 42. Rc5 {[%emt 0:04:09]} Rb7 {[%emt 0:02:03]} 43. Kf6 {[%emt 0:10:47]} Rxb2 {[%emt 0:06:33]} 44. d7+ {[%emt 0:13:04]} Kd8 {[%emt 0:00:43]} 45. Kxf7 {[%emt 0:02:44]} Rb1 {[%emt 0:02:57]} 46. Ke6 {[%emt 0:00:10]} Ra6+ {[%emt 0:00:18]} 0-1